fUSD/lending_fUSD_20250220
["ID","MTS","AMOUNT","RATE_DAILY","PERIOD"]
[353780899,1740042652381,-137931.01241458,0.000124,3]
[353780900,1740042652390,-1399751.75571828,0.000124,3]
[353780901,1740042652400,-3094.97,0.000124,2]
[353780902,1740042652410,-93754.35472999,0.000124,3]
[353780903,1740042652420,-150.0,0.000124,2]
[353780904,1740042652431,-150.0,0.000124,2]
[353780905,1740042652440,-150.0,0.000124,2]
[353780906,1740042652449,-150.0,0.000124,2]
[353780907,1740042652458,-5769.72980032,0.000124,2]
[353780908,1740042652467,-2765.20677319,0.000124,2]
[353780909,1740042652476,-52990.64576355,0.000124,2]
[353780910,1740042652485,-4073.44519327,0.000124,2]
[353780911,1740042652494,-151.0,0.000124,2]
[353780912,1740042652503,-276.585687,0.000124,2]
[353780913,1740042652513,-152.43058,0.000124,2]
[353780914,1740042652522,-151.658305,0.000124,2]
[353780915,1740042652531,-157.509712,0.000124,2]
[353780916,1740042652540,-151.0,0.000124,2]
[353780917,1740042652550,-201.325956,0.000124,2]
[353780918,1740042652559,-174.885539,0.000124,2]
[353780919,1740042652568,-151.0,0.000124,2]
[353780920,1740042652578,-151.0,0.000124,2]
[353780921,1740042652589,-151.0,0.000124,2]
[353780922,1740042652598,-151.0,0.000124,2]
[353780923,1740042652607,-151.0,0.000124,2]
[353780924,1740042652617,-151.0,0.000124,2]
[353780925,1740042652627,-273.331292,0.000124,2]
[353780926,1740042652636,-151.0,0.000124,2]
[353780927,1740042652645,-151.0,0.000124,2]
[353780928,1740042652654,-151.0,0.000124,2]
[353780929,1740042652663,-151.0,0.000124,2]
[353780930,1740042652672,-153.001962,0.000124,2]
[353780931,1740042652681,-151.0,0.000124,2]
[353780932,1740042652690,-151.0,0.000124,2]
[353780933,1740042652699,-151.0,0.000124,2]
[353780934,1740042652708,-151.0,0.000124,2]
[353780935,1740042652717,-151.0,0.000124,2]
[353780936,1740042652726,-151.0,0.000124,2]
[353780937,1740042652735,-150.0,0.000124,2]
[353780938,1740042652744,-328.24590067,0.000124,2]
[353780939,1740042652753,-151.776505,0.000124,2]
[353780940,1740042652762,-151.710015,0.000124,2]
[353780941,1740042652771,-151.0,0.000124,2]
[353780942,1740042652780,-150.0,0.000124,2]
[353780943,1740042652790,-151.0,0.000124,2]
[353780944,1740042652799,-372.254408,0.000124,2]
[353780945,1740042652810,-372.254408,0.000124,2]
[353780946,1740042652821,-372.254408,0.000124,2]
[353780947,1740042652831,-372.254408,0.000124,2]
[353780948,1740042652842,-209.21888481,0.000124,2]
[353780949,1740042652853,-500.0,0.000124,2]
[353780950,1740042652863,-500.0,0.000124,2]
[353780951,1740042652873,-150.0,0.000124,2]
[353780952,1740042652882,-500.0,0.000124,2]
[353780953,1740042652891,-150.0,0.000124,2]
[353780954,1740042652902,-201.89105762,0.000124,2]
[353780955,1740042652911,-635.0,0.000124,2]
[353780956,1740042652920,-30213.46711438,0.000124,2]
[353780957,1740042652929,-188.9719657,0.000124,2]
[353780958,1740042652939,-10940.77615273,0.000124,2]
[353780959,1740042652948,-500.0,0.00012419,2]
[353780960,1740042652957,-500.0,0.00012419,2]
[353780961,1740042652967,-500.0,0.00012419,2]
[353780962,1740042653017,-500.0,0.00012419,2]
[353780963,1740042653026,-500.0,0.00012419,2]
[353780964,1740042653035,-500.0,0.00012419,2]
[353780965,1740042653046,-500.0,0.00012419,2]
[353780966,1740042653055,-500.0,0.00012419,2]
[353780967,1740042653064,-500.0,0.00012419,2]
[353780968,1740042653074,-628.79949799,0.00012419,2]
[353780969,1740042653083,-500.0,0.00012419,2]
[353780970,1740042653093,-500.0,0.00012419,2]
[353780971,1740042653102,-555.01611616,0.00012419,2]
[353780972,1740042653112,-500.0,0.00012419,2]
[353780973,1740042653121,-500.0,0.00012419,2]
[353780974,1740042653130,-500.0,0.00012419,2]
[353780975,1740042653139,-500.0,0.00012419,2]
[353780976,1740042653148,-500.0,0.00012419,2]
[353780977,1740042653157,-500.0,0.00012419,2]
[353780978,1740042653166,-575.43450735,0.00012419,2]
[353780979,1740042653176,-500.0,0.00012419,2]
[353780980,1740042653185,-741.83,0.00012419,2]
[353780981,1740042653195,-574.87,0.00012419,2]
[353780982,1740042653204,-150.0,0.00012427,2]
[353780983,1740042653214,-150.0,0.00012427,2]
[353780984,1740042653223,-500.0,0.00012427,2]
[353780985,1740042653233,-500.0,0.00012427,2]
[353780986,1740042653243,-500.0,0.00012427,2]
[353780987,1740042653252,-635.0,0.00012427,2]
[353780988,1740042653262,-150.0,0.00012455,2]
[353780989,1740042653271,-150.0,0.00012455,2]
[353780990,1740042653280,-500.0,0.00012455,2]
[353780991,1740042653290,-500.0,0.00012455,2]
[353780992,1740042653298,-500.0,0.00012455,2]
[353780993,1740042653309,-635.0,0.00012455,2]
[353780994,1740042653318,-470.92140525,0.00012471,2]
[353780995,1740042653328,-151.0,0.0001248,2]
[353780996,1740042653338,-150.0,0.00012482,2]
[353780997,1740042653347,-285.00036038,0.00012482,2]
[353780998,1740042653356,-719.00421539,0.00012482,2]
[353780999,1740042653367,-938.33126317,0.00012482,2]
[353781000,1740042653376,-500.0,0.00012482,2]
[353781001,1740042653385,-635.0,0.00012482,2]
[353781002,1740042653394,-164.81729776,0.0001249,2]
[353781003,1740042653403,-637.2668853,0.00012491,2]
[353781004,1740042653413,-519.3393169,0.00012491,2]
[353781005,1740042653422,-401.4117485,0.00012491,2]
[353781006,1740042653431,-401.5839556,0.00012491,2]
[353781007,1740042653440,-335.591967,0.00012491,2]
[353781008,1740042653449,-269.5999784,0.00012491,2]
[353781009,1740042653458,-1000.0,0.00012499,2]
[353781010,1740042653467,-2099.15269947,0.000125,2]
[353781011,1740042653476,-4972794.41839161,0.000125,5]
[353781012,1740042653611,-365.25675862,0.000125,5]
[353781013,1740042654653,-0.25910315,0.000125,5]
[353781014,1740042654665,-5153.26814209,0.000125,5]
[353781015,1740042654677,-262.07470497,0.000125,5]
[353781016,1740042654688,-837.28766294,0.000125,5]
[353781017,1740042654721,-287267.37412102,0.000125,5]
[353781018,1740042654975,-271.74445655,0.00011679,2]
[353781019,1740042655004,-233.29341737,0.00011679,2]
[353781020,1740042655014,-500.0,0.00011799,2]
[353781021,1740042655027,-500.0,0.00011881,2]
[353781022,1740042655037,-288.89052235,0.00011964,2]
[353781023,1740042655049,-42154.90604066,0.000125,5]
[353781024,1740042696523,257.77,9.207e-05,2]
[353781026,1740043277633,320.71,8.767e-05,2]
[353781027,1740043318808,819.13,8.558e-05,2]
[353781040,1740043832203,-300.0,9.989e-05,2]
[353781042,1740043832213,-7509.0343922,9.99e-05,2]
[353781044,1740043832222,-399.0,9.99e-05,10]
[353781045,1740043832232,-184.86103715,9.99e-05,2]
[353781046,1740043832241,-500.0,9.999e-05,2]
[353781047,1740043832251,-258.711653,9.999e-05,2]
[353781048,1740043832260,-500.0,9.999e-05,2]
[353781049,1740043832269,-500.0,9.999e-05,2]
[353781050,1740043832279,-500.0,9.999e-05,2]
[353781051,1740043832289,-500.0,9.999e-05,2]
[353781052,1740043832298,-267.5779525,9.999e-05,2]
[353781053,1740043832308,-23984.70704993,0.0001,2]
[353781054,1740043832327,-1180.90108895,0.0001,2]
[353781055,1740043832423,-2037.32074556,0.0001,2]
[353781056,1740043832434,-976.1689893,0.0001,2]
[353781057,1740043832480,-6858.11034324,0.0001,2]
[353781058,1740043832536,-10545.82882836,0.0001,2]
[353781059,1740043832548,-492.18846894,0.0001,2]
[353781060,1740043832594,-722.54233573,0.0001,2]
[353781602,1740043838147,-4268.74076009,9.999e-05,2]
[353781604,1740043838159,-1079.89781215,9.999e-05,2]
[353781615,1740043838256,-94044.07256978,9.999e-05,2]
[353781617,1740043838266,-20434.66045595,0.0001,2]
[353781623,1740043838312,-1014.55504234,0.0001,2]
[353781625,1740043838323,-95876.580086,0.0001,2]
[353781631,1740043838372,-10815.91287395,0.0001,2]
[353781633,1740043838383,-23677.10601771,0.0001,2]
[353781635,1740043838394,-31344.0,0.0001,2]
[353781825,1740043840281,-305.25925657,0.0001,2]
[353781826,1740043840443,-974.36,0.0001,2]
[353781827,1740043840498,-3476.04207273,0.0001,2]
[353781828,1740043840553,-1121.02813651,0.0001,2]
[353781829,1740043840565,-624.79062538,0.0001,2]
[353781830,1740043840576,-497.75433858,0.0001,2]
[353781831,1740043840792,-1702.5225,0.0001,2]
[353781832,1740043840803,-338.86202653,0.0001,2]
[353781833,1740043840815,-14655.91858449,0.0001,2]
[353781843,1740043843413,-4459.4179059,0.0001,2]
[353781844,1740043843425,-1764.09695905,0.0001,2]
[353781845,1740043843578,-387.3,0.0001,2]
[353781911,1740044178244,180.0,0.0002,120]
[353781913,1740044298976,159.87,8.767e-05,2]
[353781914,1740044321570,23672.65,9e-05,2]
[353781915,1740044336932,778.17,8.219e-05,2]
[353781916,1740044707552,-150.0,9.479e-05,2]
[353781917,1740044709163,-150.0,9.479e-05,2]
[353781918,1740044711085,-150.0,9.479e-05,2]
[353781919,1740044712899,-150.0,9.479e-05,2]
[353781920,1740044714493,-84.79,9.479e-05,2]
[353781929,1740045032360,-2000.0,9.37e-05,2]
[353781930,1740045032371,-1000.0,9.376e-05,2]
[353781931,1740045032380,-10.48197943,9.562e-05,2]
[353781932,1740045032416,-489.51802057,9.562e-05,2]
[353781933,1740045032425,-478.3,9.609e-05,2]
[353781934,1740045032435,-184.54209964,9.7e-05,3]
[353781935,1740045032446,-115.45790036,9.7e-05,3]
[353781936,1740045032456,-250.0,9.716e-05,2]
[353781937,1740045032465,-1591.63164984,9.737e-05,2]
[353781938,1740045032526,-476.47053834,9.737e-05,2]
[353781939,1740045032538,-349.97130778,9.737e-05,2]
[353781940,1740045032551,-11744.64650404,9.737e-05,2]
[353781941,1740045032560,-740.25,9.773e-05,2]
[353781942,1740045032570,-184.86103714,9.773e-05,2]
[353781943,1740045032579,-150.0,9.781e-05,2]
[353781944,1740045032589,-700.0,9.8e-05,3]
[353781945,1740045032599,-200.0,9.82e-05,2]
[353781946,1740045032608,-7285.71,9.82e-05,2]
[353781947,1740045032618,-178.87,9.85e-05,2]
[353781948,1740045032627,-299.99,9.85e-05,2]
[353781949,1740045032637,-360.88,9.85e-05,2]
[353781950,1740045032646,-150.99,9.85e-05,2]
[353781951,1740045032655,-1100.0,9.9e-05,3]
[353781952,1740045032665,-165.12,9.921e-05,2]
[353781953,1740045032674,-865.27,9.999e-05,2]
[353781954,1740045032683,-1000.0,9.999e-05,2]
[353781955,1740045032692,-1000.0,9.999e-05,2]
[353781956,1740045032701,-1000.0,9.999e-05,2]
[353781957,1740045032711,-1000.0,9.999e-05,2]
[353781958,1740045032720,-1000.0,9.999e-05,2]
[353781959,1740045032730,-16250.46111876,0.0001,2]
[353781960,1740045032741,-25657.646544,0.0001,2]
[353781961,1740045032752,-119408.73707566,0.0001,2]
[353781962,1740045032764,-987.78,0.0001,2]
[353781963,1740045032775,-5979.9208343,0.0001,2]
[353781964,1740045032786,-780.09523378,0.0001,2]
[353781965,1740045032797,-2944.52502375,0.0001,2]
[353781966,1740045032858,-2282.62216019,0.0001,2]
[353781968,1740045038275,-1305.44514209,0.0001,2]
[353781970,1740045038330,-819.81,0.0001,2]
[353781971,1740045038388,-507.74999992,0.0001,2]
[353781972,1740045038401,-1008.99495766,0.0001,2]
[353781973,1740045038498,-1307.85422154,0.0001,2]
[353781974,1740045038510,-6563.33506022,0.0001,2]
[353781975,1740045038554,-462.31701505,0.0001,2]
[353781976,1740045038611,-2912.571574,0.0001,2]
[353781986,1740045040483,-1072.55498774,0.0001,2]
[353782002,1740045043467,-389.11154889,0.0001,2]
[353782003,1740045043522,-332.31731781,0.0001,2]
[353782023,1740045046362,-263127.15912351,0.0001,2]
[353782024,1740045046419,-10654.0,0.0001,2]
[353782025,1740045046531,-1346.56450318,0.0001,2]
[353782026,1740045046587,-110761.87176076,0.0001,2]
[353782027,1740045046645,-8345.66925699,0.0001,2]
[353782028,1740045046701,-500.0,0.0001,2]
[353782029,1740045046758,-6607.95430327,0.0001,2]
[353782033,1740045376070,861.74,8.219e-05,2]
[353782035,1740045420557,-150.0,9.489e-05,2]
[353782036,1740045422858,-150.0,9.489e-05,2]
[353782037,1740045425050,-150.0,9.489e-05,2]
[353782038,1740045427344,-150.0,9.489e-05,2]
[353782039,1740045429229,-150.0,9.489e-05,2]
[353782040,1740045431073,-150.0,9.489e-05,2]
[353782041,1740045432859,-150.0,9.489e-05,2]
[353782042,1740045435190,-150.0,9.489e-05,2]
[353782043,1740045437529,-150.0,9.489e-05,2]
[353782044,1740045440468,-150.0,9.489e-05,2]
[353782045,1740045469624,179.02,8.767e-05,2]
[353782047,1740045481067,1405.83183581,0.00013,20]
[353782048,1740045902801,150.0,9e-05,2]
[353782049,1740045903139,150.0,9.05e-05,2]
[353782050,1740045903468,150.0,9.1e-05,2]
[353782051,1740045903803,150.0,9.15e-05,2]
[353782052,1740045904673,150.0,9.2e-05,2]
[353782053,1740045912480,150.0,9e-05,2]
[353782054,1740045917614,150.0,9e-05,2]
[353782055,1740045917928,150.0,9.2e-05,2]
[353782060,1740046155788,579.06,8.824e-05,2]
[353782066,1740046231557,-150.0,9.25e-05,2]
[353782067,1740046231566,-150.0,9.3e-05,2]
[353782068,1740046231576,-150.0,9.35e-05,2]
[353782069,1740046231586,-470.94570335,9.4e-05,2]
[353782070,1740046231595,-2257.83277649,9.4e-05,2]
[353782071,1740046231604,-150.0,9.4e-05,2]
[353782072,1740046231614,-150.0,9.4e-05,2]
[353782073,1740046231623,-150.0,9.45e-05,2]
[353782074,1740046231632,-150.0,9.5e-05,2]
[353782075,1740046231643,-150.0,9.55e-05,2]
[353782076,1740046231652,-34.26152016,9.562e-05,2]
[353782077,1740046231672,-465.73847984,9.562e-05,2]
[353782078,1740046231681,-648.91,9.565e-05,2]
[353782079,1740046231691,-250.0,9.595e-05,2]
[353782080,1740046231700,-150.0,9.6e-05,2]
[353782081,1740046231710,-150.0,9.6e-05,2]
[353782082,1740046231721,-150.0,9.65e-05,2]
[353782083,1740046231731,-1630.80289527,9.688e-05,2]
[353782084,1740046231745,-49.82710473,9.688e-05,2]
[353782085,1740046231755,-470.94570335,9.7e-05,2]
[353782086,1740046231765,-150.0,9.7e-05,2]
[353782087,1740046231775,-150.0,9.75e-05,2]
[353782088,1740046231785,-269.96,9.766e-05,2]
[353782089,1740046231794,-164.31,9.766e-05,2]
[353782090,1740046231803,-150.0,9.8e-05,2]
[353782091,1740046231813,-150.0,9.8e-05,2]
[353782092,1740046231822,-200.0,9.8e-05,3]
[353782093,1740046231831,-150.0,9.85e-05,2]
[353782094,1740046231841,-1911.9633,9.899e-05,2]
[353782095,1740046231850,-1016.9758,9.899e-05,2]
[353782096,1740046231859,-150.0,9.9e-05,2]
[353782097,1740046231869,-1000.0,9.9e-05,2]
[353782098,1740046231879,-500.0,9.9e-05,3]
[353782099,1740046231888,-150.0,9.9e-05,2]
[353782100,1740046231898,-579.06,9.927e-05,2]
[353782101,1740046231908,-150.0,9.95e-05,2]
[353782102,1740046231917,-415.59,9.978e-05,2]
[353782103,1740046231927,-208.9566728,9.996e-05,2]
[353782104,1740046231937,-130877.22233564,9.999e-05,2]
[353782105,1740046231946,-5525.353,9.999e-05,2]
[353782106,1740046231956,-167.826,9.999e-05,2]
[353782107,1740046231967,-559.3131921,9.999e-05,2]
[353782108,1740046231978,-470.94570335,9.999e-05,2]
[353782109,1740046231988,-500.0,9.999e-05,2]
[353782110,1740046231998,-213.60257561,9.999e-05,2]
[353782112,1740046232008,-500.0,9.999e-05,2]
[353782114,1740046232018,-500.0,9.999e-05,2]
[353782116,1740046232027,-500.0,9.999e-05,2]
[353782117,1740046232037,-572.24712196,9.999e-05,2]
[353782118,1740046232047,-500.0,9.999e-05,2]
[353782119,1740046232057,-500.0,9.999e-05,2]
[353782120,1740046232067,-500.0,9.999e-05,2]
[353782121,1740046232077,-500.0,9.999e-05,2]
[353782122,1740046232086,-500.0,9.999e-05,2]
[353782123,1740046232096,-150.0,0.0001,2]
[353782124,1740046232105,-172.66327184,0.0001,2]
[353782126,1740046232115,-1937588.13441085,0.0001,2]
[353782128,1740046232124,-185.29210313,0.0001,2]
[353782129,1740046232134,-70865.09856771,0.0001,2]
[353782130,1740046232143,-155.81527936,0.0001,2]
[353782131,1740046232152,-150.0,0.0001,2]
[353782132,1740046232162,-800.0,0.0001,3]
[353782133,1740046232171,-1000.0,0.0001,2]
[353782134,1740046232180,-404.34065923,0.0001,2]
[353782135,1740046232190,-2530.64889,0.0001,2]
[353782137,1740046232199,-370.12,0.00010011,2]
[353782139,1740046232208,-403.0927925,0.00010232,2]
[353782141,1740046232218,-861.74,0.00010453,2]
[353782143,1740046232227,-1000.0,0.00010548,2]
[353782145,1740046232237,-500.0,0.00010555,2]
[353782147,1740046232246,-500.0,0.00010555,2]
[353782149,1740046232256,-403.0927925,0.00010562,2]
[353782151,1740046232266,-277.14294644,0.000106,2]
[353782152,1740046232275,-277.14294628,0.000106,2]
[353782153,1740046232284,-691.76546054,0.00010623,2]
[353782154,1740046232294,-439.24,0.00010642,2]
[353782155,1740046232303,-301.94,0.00010642,2]
[353782156,1740046232313,-312.97,0.00010642,2]
[353782157,1740046232322,-150.0,0.00010642,2]
[353782158,1740046232331,-439.24,0.00010642,2]
[353782159,1740046232340,-438.94,0.00010642,2]
[353782160,1740046232350,-439.14,0.00010642,2]
[353782161,1740046232359,-277.14294628,0.00010659,2]
[353782162,1740046232368,-478.3,0.0001081,2]
[353782163,1740046232378,-158.47253349,0.000109,2]
[353782164,1740046232387,-1000.0,0.000109,3]
[353782165,1740046232397,-403.09279252,0.00010903,2]
[353782166,1740046232406,-891.72,0.00010957,2]
[353782167,1740046232416,-227.43792548,0.00010958,2]
[353782168,1740046232426,-339.15479493,0.00010958,2]
[353782169,1740046232436,-500.0,0.00010958,2]
[353782170,1740046232446,-501.26279884,0.00010958,2]
[353782171,1740046232455,-503.48985398,0.00010958,2]
[353782172,1740046232469,-500.0,0.00010958,2]
[353782173,1740046232478,-517.77028457,0.00010958,2]
[353782174,1740046232488,-500.0,0.00010958,2]
[353782175,1740046232499,-505.32611028,0.00010958,2]
[353782176,1740046232508,-503.79498806,0.00010958,2]
[353782177,1740046232519,-513.20036809,0.00010958,2]
[353782178,1740046232529,-504.12075664,0.00010958,2]
[353782179,1740046232540,-502.75053105,0.00010958,2]
[353782180,1740046232550,-507.61123036,0.00010958,2]
[353782181,1740046232559,-502.65960631,0.00010958,2]
[353782182,1740046232569,-508.06502204,0.00010958,2]
[353782183,1740046232578,-500.0,0.00010958,2]
[353782184,1740046232588,-504.40482559,0.00010958,2]
[353782185,1740046232598,-227.07898127,0.00010958,2]
[353782186,1740046232608,-500.0,0.00010958,2]
[353782187,1740046232617,-502.94852301,0.00010958,2]
[353782188,1740046232627,-508.92645838,0.00010958,2]
[353782189,1740046232637,-506.86693007,0.00010958,2]
[353782190,1740046232646,-504.32703059,0.00010958,2]
[353782191,1740046232655,-503.89620729,0.00010958,2]
[353782192,1740046232665,-619.59589485,0.00010958,2]
[353782193,1740046232674,-500.0,0.00010958,2]
[353782194,1740046232684,-504.0529018,0.00010958,2]
[353782195,1740046232693,-500.0,0.00010958,2]
[353782196,1740046232703,-503.26461632,0.00010958,2]
[353782197,1740046232712,-507.13496046,0.00010958,2]
[353782198,1740046232723,-503.60222037,0.00010958,2]
[353782199,1740046232733,-500.0,0.00010958,2]
[353782200,1740046232742,-504.5431457,0.00010958,2]
[353782201,1740046232752,-504.40936909,0.00010958,2]
[353782202,1740046232763,-503.0327368,0.00010958,2]
[353782203,1740046232772,-505.62428774,0.00010958,2]
[353782204,1740046232782,-507.13080368,0.00010958,2]
[353782205,1740046232791,-500.0,0.00010958,2]
[353782206,1740046232802,-504.05049047,0.00010958,2]
[353782207,1740046232811,-505.23589699,0.00010958,2]
[353782208,1740046232822,-505.75327532,0.00010958,2]
[353782209,1740046232831,-507.62164797,0.00010958,2]
[353782210,1740046232840,-500.0,0.00010958,2]
[353782211,1740046232850,-500.0,0.00010958,2]
[353782212,1740046232859,-509.58422597,0.00010958,2]
[353782213,1740046232869,-500.0,0.00010958,2]
[353782214,1740046232878,-504.55202756,0.00010958,2]
[353782215,1740046232888,-500.0,0.00010958,2]
[353782216,1740046232897,-500.0,0.00010958,2]
[353782217,1740046232907,-500.0,0.00010958,2]
[353782218,1740046232917,-503.50618433,0.00010958,2]
[353782219,1740046232927,-500.0,0.00010958,2]
[353782220,1740046232937,-500.0,0.00010958,2]
[353782221,1740046232946,-500.0,0.00010958,2]
[353782222,1740046232955,-500.0,0.00010958,2]
[353782223,1740046232966,-500.0,0.00010958,2]
[353782224,1740046232975,-513.25497798,0.00010958,2]
[353782225,1740046232985,-500.0,0.00010958,2]
[353782226,1740046232994,-500.0,0.00010958,2]
[353782227,1740046233004,-506.42029873,0.00010958,2]
[353782228,1740046233013,-500.0,0.00010958,2]
[353782229,1740046233023,-500.0,0.00010958,2]
[353782230,1740046233033,-500.0,0.00010958,2]
[353782231,1740046233043,-508.2519237,0.00010958,2]
[353782232,1740046233053,-500.0,0.00010958,2]
[353782233,1740046233063,-507.47825259,0.00010958,2]
[353782234,1740046233073,-500.0,0.00010958,2]
[353782235,1740046233083,-510.77495939,0.00010958,2]
[353782236,1740046233093,-506.39849045,0.00010958,2]
[353782237,1740046233103,-508.099065,0.00010958,2]
[353782238,1740046233113,-500.0,0.00010958,2]
[353782239,1740046233122,-494.0,0.00010958,2]
[353782240,1740046233132,-498.14011463,0.00010958,2]
[353782241,1740046233143,-500.0,0.00010958,2]
[353782242,1740046233153,-500.0,0.00010958,2]
[353782243,1740046233163,-500.0,0.00010958,2]
[353782244,1740046233172,-503.62084332,0.00010958,2]
[353782245,1740046233182,-502.35341948,0.00010958,2]
[353782246,1740046233192,-506.05555822,0.00010958,2]
[353782247,1740046233203,-565.03805467,0.00010958,2]
[353782248,1740046233214,-500.0,0.00010958,2]
[353782249,1740046233225,-502.2029601,0.00010958,2]
[353782250,1740046233235,-500.0,0.00010958,2]
[353782251,1740046233245,-500.0,0.00010958,2]
[353782252,1740046233254,-500.0,0.00010958,2]
[353782253,1740046233264,-504.1108308,0.00010958,2]
[353782254,1740046233273,-500.0,0.00010958,2]
[353782255,1740046233283,-506.35699712,0.00010958,2]
[353782256,1740046233294,-504.33505585,0.00010958,2]
[353782257,1740046233305,-508.38102967,0.00010958,2]
[353782258,1740046233315,-500.0,0.00010958,2]
[353782259,1740046233326,-503.63739915,0.00010958,2]
[353782260,1740046233335,-628.02536808,0.00010958,2]
[353782261,1740046233346,-500.0,0.00010958,2]
[353782262,1740046233356,-500.0,0.00010958,2]
[353782263,1740046233366,-500.0,0.00010958,2]
[353782264,1740046233377,-500.0,0.00010958,2]
[353782265,1740046233387,-509.49870101,0.00010958,2]
[353782266,1740046233397,-500.0,0.00010958,2]
[353782267,1740046233407,-501.10226441,0.00010958,2]
[353782268,1740046233418,-500.0,0.00010958,2]
[353782269,1740046233427,-500.82828377,0.00010958,2]
[353782270,1740046233437,-500.0,0.00010958,2]
[353782271,1740046233447,-501.56612873,0.00010958,2]
[353782272,1740046233459,-504.51350769,0.00010958,2]
[353782273,1740046233472,-498.98467887,0.00010958,2]
[353782274,1740046233482,-500.0,0.00010958,2]
[353782275,1740046233493,-500.0,0.00010958,2]
[353782276,1740046233505,-501.85726314,0.00010958,2]
[353782277,1740046233515,-500.0,0.00010958,2]
[353782278,1740046233526,-500.0,0.00010958,2]
[353782279,1740046233538,-500.0,0.00010958,2]
[353782280,1740046233548,-150.15083574,0.00010958,2]
[353782281,1740046233557,-502.62955147,0.00010958,2]
[353782282,1740046233567,-500.0,0.00010958,2]
[353782283,1740046233576,-200.50840611,0.00010958,2]
[353782284,1740046233586,-153.640137,0.00010958,2]
[353782285,1740046233595,-500.17248203,0.00010958,2]
[353782286,1740046233606,-503.74516464,0.00010958,2]
[353782287,1740046233615,-500.0,0.00010958,2]
[353782288,1740046233625,-501.41085193,0.00010958,2]
[353782289,1740046233634,-501.59381629,0.00010958,2]
[353782290,1740046233644,-505.03624236,0.00010958,2]
[353782291,1740046233653,-500.0,0.00010958,2]
[353782292,1740046233663,-500.0,0.00010958,2]
[353782293,1740046233673,-507.94241288,0.00010958,2]
[353782294,1740046233682,-500.92539981,0.00010958,2]
[353782295,1740046233691,-500.0,0.00010958,2]
[353782296,1740046233700,-500.0,0.00010958,2]
[353782297,1740046233710,-500.38091336,0.00010958,2]
[353782298,1740046233720,-551.35133817,0.00010958,2]
[353782299,1740046233730,-544.75458727,0.00010958,2]
[353782300,1740046233740,-500.0,0.00010958,2]
[353782301,1740046233749,-302.3192634,0.00010958,2]
[353782302,1740046233759,-500.0,0.00010958,2]
[353782303,1740046233769,-554.00510576,0.00010958,2]
[353782304,1740046233779,-500.0,0.00010958,2]
[353782305,1740046233788,-500.0,0.00010958,2]
[353782306,1740046233798,-500.0,0.00010958,2]
[353782307,1740046233807,-500.0,0.00010958,2]
[353782308,1740046233817,-504.75382064,0.00010958,2]
[353782309,1740046233827,-506.73776777,0.00010958,2]
[353782310,1740046233836,-5012.29268402,0.00010958,2]
[353782311,1740046233846,-500.0,0.00010958,2]
[353782312,1740046233856,-500.0,0.00010958,2]
[353782313,1740046233865,-158.488519,0.00010958,2]
[353782314,1740046233875,-500.0,0.00010958,2]
[353782315,1740046233885,-500.0,0.00010958,2]
[353782316,1740046233894,-500.0,0.00010958,2]
[353782317,1740046233903,-501.57003261,0.00010958,2]
[353782318,1740046233913,-500.63201117,0.00010958,2]
[353782319,1740046233923,-500.0,0.00010958,2]
[353782320,1740046233932,-501.57089643,0.00010958,2]
[353782321,1740046233941,-500.48574545,0.00010958,2]
[353782322,1740046233951,-500.0,0.00010958,2]
[353782323,1740046233960,-500.0,0.00010958,2]